Cogmind - Beta 15 @@@ ROGUE MODE // 2025.05.25 @ 12:45:30 Player: Nalesnig Result: Destroyed by S-27 Virus with Autogun Performance ------------- Evolutions (6) 3000 Regions Visited (19) 3800 Robots Destroyed (251) 1255 Value Destroyed (11713) 11713 Prototype IDs (52) 1040 Alien Tech Used (0) 0 Bonus (6827) 6827 TOTAL SCORE: 27635 Bonus ------- High Alert Combat Kills 1531 Follower Combat Kills 996 Entered Garrisons 1000 Used RIF Installer 2500 Entered DSFs 500 Aligned with FarCom 300 Cogmind --------- Core Integrity 0/1150 Matter 284/300 Energy 70/100 System Corruption 9% Temperature Cool (0) Movement Treading (160) Location -4/Upper Caves Parts ------- > --- POWER (2) -------- (None) > --- PROPULSION (7) --- Medium Treads > --- UTILITY (6) ------ Improved Heat Sink > --- WEAPON (4) ------- (None) > --- INVENTORY (5) ---- Light Antimatter Reactor Advanced Heat Sink Quantum Capacitor Relay Coupler [Sentry] (29) Peak State ------------ > --- POWER ------------ Light Antimatter Reactor Light Antimatter Reactor > --- PROPULSION ------- Improved Gravmag System Gravmag Array Gravmag Array Gyrokinetic Inverter Improved Antigrav System > --- UTILITY ---------- Improved Cryofiber Web Advanced Cooling System Large Storage Unit Advanced Targeting Computer Relay Coupler [NC] Relay Coupler [Grunt] > --- WEAPON ----------- Heavy Laser HERF Cannon Cooled Plasma Cannon Hypervelocity Coil Gun > --- INVENTORY -------- Light Antimatter Reactor Light Antimatter Reactor Advanced Heat Sink Energy Well Quantum Capacitor Advanced Hacking Suite Relay Coupler [Sentry] Relay Coupler [Hunter] Heavy Gauss Cannon Linear Accelerator Linear Accelerator Heavy Missile Launcher Improved Remote Datajack Longsword +1 [Rating: 103] Favorites ----------- Power Ion Engine Engine Ion Engine Power Core Micro Fission Core Reactor Light Antimatter Reactor Propulsion Light Treads Treads Light Treads Leg Flexi-carbon Leg Wheel Armored Wheel Hover Unit Gravmag System Flight Unit Surge Thruster Utility Large Storage Unit Device Improved Heat Sink Storage Large Storage Unit Processor Advanced Targeting Computer Hackware Relay Coupler [Grunt] Protection Improved Light Armor Plating Weapon Enhanced Autogun Energy Gun Particle Gun Energy Cannon Cooled Plasma Cannon Ballistic Gun Enhanced Autogun Ballistic Cannon Gauss Cannon Launcher Rocket Launcher Special Weapon Improved Remote Datajack Slashing Weapon Longsword +1 Special Melee Weapon Improved Datajack Build | -11 -10 -10 -10 -9 -8 -8 -8 -7 -7 -7 -7 -6 -6 -6 -6 -5 -5 -4 -4 ------- Run | Yrd Mat Min Exi Min Mat Gar Sto Fac Gar Fac DSF Fac Gar Fac Gar Fac Gar Fac Upp Slots Evolved 12 | . . . . . 4 . . 2 . . . 2 . . . 2 . 2 . Power 1 | . . . . . . . . . . . . . . . . . . 1 . Propulsion 5 | . . . . . 1 . . 1 . . . 2 . . . 1 . . . Utility 4 | . . . . . 2 . . 1 . . . . . . . 1 . . . Weapon 2 | . . . . . 1 . . . . . . . . . . . . 1 . Parts Attached 157 | 9 3 1 1 1 19 8 9 13 5 . 14 20 3 4 13 6 11 12 5 Power 19 | 2 . . . . 2 1 2 2 . . 1 3 . . 1 1 1 3 . Engine 8 | 2 . . . . . 1 1 1 . . 1 1 . . 1 . . . . Core 8 | . . . . . 2 . 1 1 . . . 1 . . . 1 1 1 . Reactor 3 | . . . . . . . . . . . . 1 . . . . . 2 . Propulsion 47 | 2 1 . . . 5 2 . 6 1 . 5 9 . 3 5 1 2 3 2 Treads 10 | 2 1 . . . 4 . . . . . . 1 . . . . . . 2 Leg 6 | . . . . . . . . . . . 4 2 . . . . . . . Wheel 1 | . . . . . . . . 1 . . . . . . . . . . . Hover 29 | . . . . . 1 2 . 5 1 . . 6 . 3 5 1 2 3 . Flight 1 | . . . . . . . . . . . 1 . . . . . . . . Utility 43 | 3 1 . 1 1 3 3 2 3 2 . 4 3 2 . 3 2 7 1 2 Device 16 | 2 . . . . 1 2 1 2 . . 2 1 1 . . 2 1 . 1 Storage 6 | 1 1 . 1 . . . . . . . 1 . . . . . 1 . 1 Processor 2 | . . . . . 1 . . . . . . 1 . . . . . . . Hackware 12 | . . . . . . . 1 . 1 . . . 1 . 3 . 5 1 . Protection 7 | . . . . 1 1 1 . 1 1 . 1 1 . . . . . . . Artifact . | . . . . . . . . . . . . . . . . . . . . Weapon 48 | 2 1 1 . . 9 2 5 2 2 . 4 5 1 1 4 2 1 5 1 Energy Gun 9 | . . 1 . . 2 . 2 . . . . 1 . . 2 . 1 . . Energy Cannon 7 | . . . . . 1 . . 1 . . 1 2 1 . . . . 1 . Ballistic Gun 13 | 2 . . . . 4 1 1 . 1 . . 1 . 1 1 1 . . . Ballistic Cannon 7 | . . . . . 1 . . 1 . . 2 . . . . . . 3 . Launcher 6 | . 1 . . . 1 . 1 . . . 1 1 . . 1 . . . . Special Weapon 3 | . . . . . . . . . 1 . . . . . . 1 . . 1 Impact Weapon . | . . . . . . . . . . . . . . . . . . . . Slashing Weapon 2 | . . . . . . 1 . . . . . . . . . . . 1 . Piercing Weapon . | . . . . . . . . . . . . . . . . . . . . Special Melee Weapon 1 | . . . . . . . 1 . . . . . . . . . . . . Unidentified Prototypes 12 | . . . . . 3 . 2 1 . . . 5 . 1 . . . . . Corrupted Parts 1 | . . . . . . . . . . . . . . . . . . . 1 System Corruption 3 | . . . . . . . . . . . . . . . . . . . 3 Parts Lost 63 | . . 1 . . 4 2 6 2 4 . 7 . . . 10 . 5 18 4 Power 7 | . . . . . 1 1 1 . . . . . . . 2 . . 2 . Propulsion 25 | . . . . . 2 1 . 1 2 . 4 . . . 4 . 3 7 1 Utility 12 | . . . . . . . 2 . 2 . 2 . . . 1 . 1 3 1 Weapon 19 | . . 1 . . 1 . 3 1 . . 1 . . . 3 . 1 6 2 Highest Loss Streak 16 | . . 1 . . 1 1 4 1 4 . 3 . . . 9 . 3 16 3 To Critical Strikes 3 | . . . . . . . . . 1 . . . . . 1 . . 1 . Average Backups 12 | 3 7 9 10 10 11 14 14 14 14 12 14 14 13 14 12 14 14 12 4 Power 1 | . 1 1 1 1 1 . . 1 1 1 1 1 1 1 . 1 1 1 1 Propulsion 1 | 1 2 2 2 2 2 3 2 1 1 . . . 1 1 . 1 1 . . Utility 5 | . 2 2 3 2 3 4 7 7 7 7 8 8 6 6 5 6 5 5 3 Weapon 3 | . 1 3 4 5 4 4 3 3 3 3 3 3 3 5 5 5 5 4 . Tool/Special . | . . . . . . . . . . . . . . . . . . . . Unused Backups 45 | . 3 2 . . 7 4 . 2 4 . . 4 . 2 . 6 4 4 3 Power 7 | . . . . . 2 . . 1 1 . . . . . . 1 . 1 1 Propulsion 6 | . 2 1 . . 2 . . . . . . . . . . 1 . . . Utility 21 | . 1 1 . . 1 3 . 1 3 . . 4 . 1 . 1 1 2 2 Weapon 11 | . . . . . 2 1 . . . . . . . 1 . 3 3 1 . Tool/Special . | . . . . . . . . . . . . . . . . . . . . Average Slot Usage (%) 93 | . 99 100 100 100 93 99 95 98 99 92 75 97 93 86 82 93 91 80 11 Engine 5 | . 14 14 14 14 5 3 7 2 7 7 6 6 6 6 4 . . . . Core 2 | . . . . . 3 5 . 4 . . . . . . . 4 5 1 . Treads 10 | . 28 28 28 28 26 20 . . . . . 4 . . . . . . 1 Leg 2 | . . . . . . . . . . . 4 23 . . . . . . . Hover 15 | . . . . . . 5 27 30 29 30 12 9 33 26 26 34 33 25 . Device 10 | . 14 14 14 7 7 11 17 15 14 7 7 8 6 6 2 8 8 6 . Storage 8 | . 14 14 14 14 9 9 9 7 7 7 7 6 6 6 6 5 5 7 2 Processor 3 | . . . . . 5 6 . . . . . 3 6 6 6 5 5 4 . Hackware 4 | . . . . . . . 1 7 7 7 7 6 6 6 11 7 8 8 . Protection 5 | . . . . 6 9 9 6 5 6 7 4 6 6 6 3 5 3 . . Energy Gun 3 | . . 13 14 14 7 . 1 3 . . . 2 . . 2 5 5 3 . Energy Cannon 4 | . . . . . . . 2 10 13 . 5 5 13 13 8 5 5 6 . Ballistic Gun 10 | . 27 14 14 14 13 24 19 3 . 7 4 1 4 5 4 4 4 3 . Ballistic Cannon 2 | . . . . . 5 . . 2 6 7 9 6 . . . . . 2 . Peak Build Rating 103 | 9 8 9 10 10 35 48 48 58 55 49 53 75 75 74 75 82 86 103 23 Average Rating 46 | 5 7 8 9 10 21 36 43 53 53 49 42 70 73 73 62 80 82 86 15 On Entrance 41 | . 7 8 9 10 10 34 48 45 54 49 49 53 73 73 74 66 82 82 11 Naked Turns 19 | . . . . . . . . . . . . . . . . . . 19 . Heaviest Build 79 | 14 19 20 30 32 42 41 44 73 73 53 73 62 61 58 60 51 52 79 11 Greatest Support 100 | 40 40 40 40 40 62 62 33 42 50 43 80 100 58 60 59 66 61 73 28 Greatest Overweight (x) 19 | . . . . . . 1 1 2 1 1 16 1 1 1 1 . 1 19 3 Average Overweight (x) . | . . . . . . . 1 1 1 1 1 . . . . . . . . Largest Inventory Capacity 15 | 8 10 10 15 15 15 15 15 15 15 15 15 15 15 15 15 15 15 15 5 Average Capacity 14 | 7 8 10 12 15 15 15 15 15 15 15 15 15 15 15 15 15 15 14 5 Most Carried 15 | 4 10 10 11 11 15 15 15 15 15 12 15 15 15 15 15 15 15 15 5 Average Carried 13 | 3 7 9 10 10 12 14 14 14 14 12 14 14 14 14 12 14 14 13 5 Final Capacity 15 | 8 10 10 15 15 15 15 15 15 15 15 15 15 15 15 15 15 15 5 5 Final Carried 15 | 4 10 10 11 11 15 15 14 15 12 12 15 15 14 15 15 15 15 5 5 Class Distribution -------------------- 50% | Bothacker-Skirmisher 20% | Skirmisher 20% | Mutant 4% | Bothacker-Mutant Dominant Class ---------------- Mutant | -10/Materials Mutant | -10/Mines Mutant | -10/Exiles Mutant | -9/Mines Skirmisher | -8/Materials Skirmisher | -8/Garrison Bothacker-Skirmisher | -8/Storage Bothacker-Skirmisher | -7/Factory Bothacker-Skirmisher | -7/Garrison Bothacker-Skirmisher | -7/Factory Bothacker-Skirmisher | -7/DSF Bothacker-Skirmisher | -6/Factory Bothacker-Skirmisher | -6/Garrison Bothacker-Skirmisher | -6/Factory Bothacker-Skirmisher | -6/Garrison Bothacker-Skirmisher | -5/Factory Bothacker-Skirmisher | -5/Garrison Bothacker-Skirmisher | -4/Factory Mutant | -4/Upper Caves Resources | -11 -10 -10 -10 -9 -8 -8 -8 -7 -7 -7 -7 -6 -6 -6 -6 -5 -5 -4 -4 ----------- Run | Yrd Mat Min Exi Min Mat Gar Sto Fac Gar Fac DSF Fac Gar Fac Gar Fac Gar Fac Upp Matter Collected 6519 | 379 215 60 . 20 852 1002 517 150 314 . 528 568 210 79 389 218 392 555 71 Remotely . | . . . . . . . . . . . . . . . . . . . . Salvage Created 9140 | 185 250 182 . . 1356 1253 613 188 538 . 409 910 464 . 662 335 754 892 149 Parts 534 | 20 22 15 . . 80 88 36 16 36 . 22 51 22 . 42 13 32 34 5 Haulers Intercepted 16 | . 2 . . . 6 . 4 . . . . 2 . . . 1 . 1 . Recyclers Shooed 8 | . 2 1 . . 2 . 1 . . . . . . . . 1 . 1 . Parts Field Recycled . | . . . . . . . . . . . . . . . . . . . . Retrieved Matter . | . . . . . . . . . . . . . . . . . . . . Parts Self-Destructed 1 | . . . . . . . . . . . . . . . . . . . 1 Prevented . | . . . . . . . . . . . . . . . . . . . . Kills | -11 -10 -10 -10 -9 -8 -8 -8 -7 -7 -7 -7 -6 -6 -6 -6 -5 -5 -4 -4 ------- Run | Yrd Mat Min Exi Min Mat Gar Sto Fac Gar Fac DSF Fac Gar Fac Gar Fac Gar Fac Upp Combat Hostiles Destroyed 200 | . 9 4 . . 26 38 8 6 25 . 8 15 11 . 23 2 12 12 1 Melee 1 | . . . . . . . . . . . . . . . . . . . 1 Guns 78 | . 6 4 . . 17 25 7 . . . . 9 . . 1 1 4 4 . Cannons 59 | . . . . . 6 . 1 2 13 . 8 3 5 . 10 1 6 4 . AOE 60 | . 3 . . . 3 13 . 4 12 . . 3 6 . 11 . 1 4 . Classes Destroyed 19 | 2 3 1 . . 2 4 2 1 . . 2 . . . 1 . . . 1 Worker 3 | . . . . . . . . 1 . . . 2 . . . . . . . Builder 9 | . . . . . 2 . 2 . . . . 2 . . . . . 3 . Tunneler 6 | 6 . . . . . . . . . . . . . . . . . . . Hauler 16 | . 2 . . . 6 . 4 . . . . 2 . . . 1 . 1 . Recycler 6 | 1 . . . . 2 . 1 . . . . . . . . 1 . 1 . Operator 2 | . . . . . . . 1 . . . . 1 . . . . . . . Watcher 7 | . 2 . . . 2 1 . . . . . 1 . . . . 1 . . Swarmer 85 | . 9 . . . 11 10 . 3 19 . 3 7 4 . 15 . . 4 . Cutter 2 | . . . . . . . . . . . 1 . . . . . 1 . . Grunt 56 | . . 4 . . 9 14 4 . 4 . 1 2 4 . 5 . 8 1 . Duelist 7 | . . . . . . 2 . . . . . 1 2 . . . 2 . . Protector 1 | . . . . . . 1 . . . . . . . . . . . . . Sentry 22 | . . . . . 6 6 3 1 1 . 1 1 1 . . . . 2 . Demolisher 1 | . . . . . . 1 . . . . . . . . . . . . . Specialist 2 | . . . . . . . . . . . 1 . . . . . . 1 . Hunter 10 | . . . . . . . 1 . 1 . 1 2 . . . . 1 4 . Programmer 15 | . . . . . . 4 . 2 . . . 2 1 . 2 2 . 1 1 Behemoth 1 | . . . . . . . . . . . . . . . 1 . . . . Packrat 1 | . . . . . . . . . . . . . . . . . . . 1 Samaritan 1 | . . . . . . . . . . . . . . . . . . . 1 Best Kill Streak 11 | 3 3 2 . . 11 10 4 3 8 . 4 7 6 . 8 4 3 8 1 Combat Bots Only 10 | . 3 2 . . 5 10 3 3 8 . 4 6 6 . 8 2 3 6 1 Max Kills in Single Turn 5 | 1 1 2 . . 2 3 1 2 3 . 1 3 4 . 3 1 1 5 1 Gunslinging 1 | . . 1 . . 1 . . . . . . . . . . . . . . Exploded 4 | . 1 . . . 2 3 . 2 3 . . 2 4 . 3 . 1 4 . Melee 1 | . . . . . . . . . . . . . . . . . . . 1 Uniques/NPCs Destroyed . | . . . . . . . . . . . . . . . . . . . . Combat | -11 -10 -10 -10 -9 -8 -8 -8 -7 -7 -7 -7 -6 -6 -6 -6 -5 -5 -4 -4 -------- Run | Yrd Mat Min Exi Min Mat Gar Sto Fac Gar Fac DSF Fac Gar Fac Gar Fac Gar Fac Upp Hostile Shots Fired 1150 | . 31 24 . . 64 100 59 21 106 . 89 89 29 9 148 8 42 284 47 Missed 386 | . 7 3 . . 25 27 16 7 35 . 29 37 18 7 42 4 16 100 13 Hits 764 | . 24 21 . . 39 73 43 14 71 . 60 52 11 2 106 4 26 184 34 Melee 11 | . . . . . . . . . . . 7 . 1 . . . 3 . . Projectile 753 | . 24 21 . . 39 73 43 14 71 . 53 52 10 2 106 4 23 184 34 AOE 6 | . . . . . . 4 . . . . 2 . . . . . . . . Critical Strikes 28 | . . 1 . . . 2 . 1 1 . 6 1 . . 4 . 1 9 2 Part Disruptions 1 | . . . . . . . . . . . . . . . . . . . 1 Damage Taken 12087 | . 233 273 . . 620 1109 689 290 800 . 954 1150 170 15 1715 102 498 2892 577 Core 2350 | . 37 27 . . 64 76 77 43 73 . 153 211 5 . 333 . 95 859 297 Absorbed by Shields 36 | . . . . . . . . . 13 . . . . . . 23 . . . Ignored by Resistances 314 | . . . . . . . . 21 228 . 65 . . . . . . . . Regen/Repaired (Parts) 71 | . . . . . . . . . . . . 71 . . . . . . . Core Remaining (%) 70 | 100 . . . 74 . . 60 . . . 61 . . . 35 . 90 . . Volleys Fired 733 | 24 39 17 . . 72 75 40 14 84 . 33 57 21 26 50 51 68 62 . Largest 4 | 2 2 2 . . 3 3 3 3 3 . 3 3 3 1 3 3 3 4 . Hottest 295 | 40 40 85 . . 148 78 164 185 185 . 145 205 295 105 220 155 155 260 . Shots Fired 1400 | 48 75 30 . . 210 189 89 27 134 . 51 112 39 27 68 59 106 136 . Gun 766 | 48 72 30 . . 173 180 70 8 1 . 13 50 7 2 10 9 40 53 . Cannon 553 | . . . . . 34 . 19 17 120 . 34 60 27 21 40 47 53 81 . Launcher 51 | . 3 . . . 3 9 . 2 11 . 3 2 3 . 12 . 1 2 . Special 30 | . . . . . . . . . 2 . 1 . 2 4 6 3 12 . . Kinetic 768 | 48 72 21 . . 168 180 66 7 35 . 27 33 7 2 7 5 17 73 . Thermal 540 | . . 9 . . 39 . 22 14 86 . 20 77 27 21 43 51 76 55 . Explosive 48 | . 3 . . . 3 9 . 2 11 . . 2 3 . 12 . 1 2 . Electromagnetic 14 | . . . . . . . 1 4 . . 3 . . . . . . 6 . Robot Hit Streak 30 | 6 5 5 . . 22 13 10 5 10 . 6 15 8 2 9 9 30 10 . Robot Miss Streak 6 | 4 4 3 . . 2 6 4 5 3 . 3 3 2 3 3 2 3 3 . Penetration Max 1 | . . . . . . . . . . . . . . . . . 1 1 . Secondary Targets 8 | . 1 2 . . 3 2 . . . . . . . . . . . . . Max Gunslinging Chain 1 | . 1 1 . . 1 1 . . . . . . . . . . . . . Shots Hit Robots 772 | 26 39 22 . . 142 114 64 15 59 . 29 55 22 3 29 14 52 83 4 Core Hits 461 | 10 18 10 . . 60 87 58 13 38 . 20 28 19 . 30 6 26 36 2 Critical Kills 12 | . . . . . . 2 . . . . . . . . 1 1 4 4 . Critical Parts Destroyed 7 | . . . . . . . . . . . 1 . . . . . 1 5 . Critical Strikes 42 | . . 1 . . 2 3 . 1 2 . 4 4 . . 1 2 6 16 . Burn 10 | . . 1 . . 1 . . . . . . 4 . . . 1 1 2 . Meltdown 1 | . . . . . . . . . . . . . . . 1 . . . . Destroy 18 | . . . . . . 2 . . . . 1 . . . . 1 5 9 . Blast 11 | . . . . . 1 . . . 2 . 3 . . . . . . 5 . Sever 2 | . . . . . . 1 . 1 . . . . . . . . . . . Melee Attacks 57 | . . . . . . 27 3 12 . . . 11 . . . . . . 4 Impact . | . . . . . . . . . . . . . . . . . . . . Slashing 55 | . . . . . . 27 1 12 . . . 11 . . . . . . 4 Piercing . | . . . . . . . . . . . . . . . . . . . . Sneak Attacks 3 | . . . . . . . . . . . . . . . . . . . 3 Combat Hostiles . | . . . . . . . . . . . . . . . . . . . . Follow-up Attacks . | . . . . . . . . . . . . . . . . . . . . Damage Inflicted 22354 | 273 620 233 . . 2556 3086 1345 734 2233 . 937 2282 1294 48 2424 336 1042 2546 365 Guns 7794 | 273 380 233 . . 1854 1959 1019 74 . . 121 767 93 48 92 102 315 464 . Cannons 7962 | . . . . . 505 . 326 235 1385 . 632 1054 702 . 998 211 542 1372 . Explosions 6071 | . 240 . . . 197 1085 . 334 848 . 184 461 499 . 1334 . 185 704 . Melee 489 | . . . . . . 42 . 91 . . . . . . . . . . 356 Ramming 38 | . . . . . . . . . . . . . . . . 23 . 6 9 Kinetic 8379 | 273 380 140 . . 1939 1959 1019 108 401 . 377 450 93 48 92 18 79 1003 . Thermal 7539 | . . 93 . . 420 . 326 267 984 . 376 1371 702 . 998 295 778 929 . Explosive 5598 | . 240 . . . 197 1085 . 245 848 . . 461 499 . 1334 . 185 504 . Electromagnetic 311 | . . . . . . . . 23 . . 184 . . . . . . 104 . Impact . | . . . . . . . . . . . . . . . . . . . . Slashing 489 | . . . . . . 42 . 91 . . . . . . . . . . 356 Piercing . | . . . . . . . . . . . . . . . . . . . . Highest Corruption 9 | . . . . . . 5 5 1 . . . . 1 1 2 2 2 3 9 Average Corruption 2 | . . . . . . 2 5 1 . . . . 1 1 1 1 2 1 3 Corruption Purged 1 | . . . . . . . . 1 . . . . . . . . . . . Corruption Blocked . | . . . . . . . . . . . . . . . . . . . . Effects 86 | . . . . . . 23 21 6 . . . . . 3 3 3 15 4 8 Message Errors 18 | . . . . . . 4 5 . . . . . . 1 . . 6 1 1 Matter Fused 20 | . . . . . . 3 4 2 . . . . . 1 1 2 4 1 2 Heat Flow Errors 7 | . . . . . . 4 . . . . . . . . . 1 1 1 . Energy Discharges 9 | . . . . . . 2 3 2 . . . . . . . . . . 2 Parts Rejected 1 | . . . . . . . 1 . . . . . . . . . . . . Parts Fused 1 | . . . . . . 1 . . . . . . . . . . . . . Data Loss (minor) 12 | . . . . . . 6 1 . . . . . . . 1 . 2 . 2 Data Loss (major) 7 | . . . . . . . 2 1 . . . . . . 1 . 1 1 1 Misfires 7 | . . . . . . 2 2 1 . . . . . 1 . . 1 . . Alerts 1 | . . . . . . . 1 . . . . . . . . . . . . Weapon Failures 3 | . . . . . . 1 2 . . . . . . . . . . . . Overload Shots 56 | . . . . . . . . . . . . 24 7 1 12 3 7 2 . Effects 3 | . . . . . . . . . . . . 1 1 . . . 1 . . Energy Bleed 2 | . . . . . . . . . . . . . 1 . . . 1 . . Short Circuit 1 | . . . . . . . . . . . . 1 . . . . . . . Overflow Damage 848 | . 24 . . . 10 47 . 14 119 . 10 159 61 . 179 . . 84 141 Projectiles 423 | . . . . . 4 . . . 45 . 10 128 61 . 137 . . 38 . Explosions 270 | . 24 . . . 6 47 . . 74 . . 31 . . 42 . . 46 . Melee 155 | . . . . . . . . 14 . . . . . . . . . . 141 Knockbacks 27 | . . . . . 8 . . . 3 . 4 1 . . . . . 11 . Impact . | . . . . . . . . . . . . . . . . . . . . Kinetic 26 | . . . . . 8 . . . 3 . 4 1 . . . . . 10 . Secondary 1 | . . . . . . . . . . . . . . . . . . 1 . Self-Inflicted Damage 530 | . 53 . . . 54 . . 103 97 . 19 85 . . . 11 . 104 4 Shots 18 | . 3 . . . 1 . . 3 3 . 3 3 . . . . . 2 . Rammed 6 | . . . . . . . . . . . . . . . . 2 . 2 2 Targets Rammed 6 | . . . . . . . . . . . . . . . . 2 . 2 2 Kicked . | . . . . . . . . . . . . . . . . . . . . Crushed . | . . . . . . . . . . . . . . . . . . . . Highest Temperature 907 | . . 316 . . 215 245 304 180 371 . 907 386 177 28 377 99 202 606 . Average Temperature 95 | . . 121 . . 36 32 80 62 143 . 208 125 55 21 103 48 70 153 . Received Heat Transfer 2225 | . . 171 . . 207 288 153 39 93 . 141 63 30 6 348 . 189 497 . Effects 22 | . . 4 . . . . . . . . 11 1 . . . . . 6 . Shutdowns 2 | . . . . . . . . . . . 2 . . . . . . . . Energy Bleed 1 | . . . . . . . . . . . . 1 . . . . . . . Interference 11 | . . 4 . . . . . . . . 5 . . . . . . 2 . Matter Decay 2 | . . . . . . . . . . . 2 . . . . . . . . Short Circuit 5 | . . . . . . . . . . . 2 . . . . . . 3 . Damage (major) 1 | . . . . . . . . . . . . . . . . . . 1 . Siege Activations . | . . . . . . . . . . . . . . . . . . . . Martial Activations . | . . . . . . . . . . . . . . . . . . . . Shielding Activations . | . . . . . . . . . . . . . . . . . . . . Robots Disrupted . | . . . . . . . . . . . . . . . . . . . . Combat Hostiles . | . . . . . . . . . . . . . . . . . . . . Robots Corrupted . | . . . . . . . . . . . . . . . . . . . . Combat Hostiles . | . . . . . . . . . . . . . . . . . . . . Parts Fried . | . . . . . . . . . . . . . . . . . . . . Impact Corruptions . | . . . . . . . . . . . . . . . . . . . . Robots Melted 3 | . . . . . . . . . . . . 1 . . 1 . 1 . . Combat Hostiles 2 | . . . . . . . . . . . . . . . 1 . 1 . . Parts Melted 32 | . . . . . 1 . . 1 1 . . 8 1 . 3 6 3 8 . Heat Transferred 12359 | . . 296 . . 1147 . 650 324 1450 . 518 2262 865 . 1232 580 1502 1533 . Parts Sabotaged . | . . . . . . . . . . . . . . . . . . . . Parts Stolen . | . . . . . . . . . . . . . . . . . . . . Parts Stripped . | . . . . . . . . . . . . . . . . . . . . Power Chain Reactions 1 | . . . . . . . . 1 . . . . . . . . . . . Alert | -11 -10 -10 -10 -9 -8 -8 -8 -7 -7 -7 -7 -6 -6 -6 -6 -5 -5 -4 -4 ------- Run | Yrd Mat Min Exi Min Mat Gar Sto Fac Gar Fac DSF Fac Gar Fac Gar Fac Gar Fac Upp Maximum Alert Level 5 | . . . . . 2 5 3 1 3 2 2 1 2 1 2 1 3 3 . Low Security (%) 44 | 100 100 100 . 100 64 . . 80 16 . . 78 . 5 2 75 26 . . Level 1 18 | . . . . . 7 3 . 19 17 . 55 21 15 94 43 24 38 . . Level 2 23 | . . . . . 27 32 60 . 40 100 44 . 84 . 53 . 18 98 . Level 3 8 | . . . . . . 26 39 . 25 . . . . . . . 16 1 . Level 4 1 | . . . . . . 13 . . . . . . . . . . . . . Level 5 2 | . . . . . . 24 . . . . . . . . . . . . . High Security . | . . . . . . . . . . . . . . . . . . . . Max Security . | . . . . . . . . . . . . . . . . . . . . Sterilizations 1 | . . . . . . . . . . . 1 . . . . . . . . Peak Influence 1906 | 10 113 84 . . 493 1906 928 291 833 436 561 386 649 375 664 338 872 708 . Initial 928 | . . 14 . . . 312 928 291 4 436 298 294 263 340 131 338 16 457 . Average 367 | 1 37 21 . . 204 1067 730 109 496 432 416 116 487 281 466 132 368 561 . Influence Increases 8430 | 35 290 100 . . 1021 1614 281 226 869 . 333 625 386 126 723 146 1066 566 23 Destroy 0b10 Robot/C 4235 | . 180 80 . . 580 740 160 120 500 . 180 300 240 . 375 30 525 210 15 Destroy 0b10 Robot/NC 271 | 35 20 . . . 65 10 40 5 5 . 15 40 . . . 8 4 24 . Destroy Leader 634 | . 38 20 . . 136 30 48 40 30 . 30 66 30 . 58 10 40 50 8 Allied During Kill 286 | . . . . . 13 . . . . . 3 . 1 . 9 . 220 40 . Successful Hack 275 | . 9 . . . 24 28 25 7 14 . . 49 . 72 . 14 17 16 . Disable Machine 474 | . 30 . . . 45 15 . 15 75 . 15 90 30 . 63 24 24 48 . Anti-Garrison Action 928 | . . . . . . 550 . . 150 . . . . . 76 . 152 . . Destroy Structure 745 | . 13 . . . 38 76 8 24 80 . . 65 40 9 118 48 72 154 . Partial Spotted 93 | . . . . . . . . 15 . . . 15 . 15 . 12 12 24 . Lose Combat Pursuer 489 | . . . . . 120 165 . . 15 . 90 . 45 30 24 . . . . Influence Decreases 8215 | 35 252 138 . . 540 189 1544 862 43 407 198 809 114 587 267 766 218 877 369 Entered New Map 3736 | . . 24 . . . 169 978 352 3 397 128 267 114 309 57 306 8 415 209 Time Decay 3139 | 35 252 104 . . 440 . 356 470 . 10 . 542 . 278 . 310 . 222 120 Lost Part 630 | . . 10 . . 40 20 60 20 40 . 70 . . . 100 . 50 180 40 Lost Ally 410 | . . . . . 60 . . 20 . . . . . . 110 . 160 60 . Purge Threat 300 | . . . . . . . 150 . . . . . . . . 150 . . . Squads Dispatched 27 | . . . . . 2 . 1 3 . . 2 8 . 4 . 3 . 4 . Investigation 2 | . . . . . 1 . . . . . . 1 . . . . . . . Extermination 10 | . . . . . . . . 2 . . . 3 . 2 . 2 . 1 . Reinforcement 12 | . . . . . . . 1 1 . . 2 2 . 2 . 1 . 3 . Assault 2 | . . . . . . . . . . . . 2 . . . . . . . Garrison 1 | . . . . . 1 . . . . . . . . . . . . . . Intercept . | . . . . . . . . . . . . . . . . . . . . Searches Triggered . | . . . . . . . . . . . . . . . . . . . . Construction Impeded 4 | . . . . . . . 1 . . . . 1 . . . . . 2 . Haulers Reinforced . | . . . . . . . . . . . . . . . . . . . . Active Scanning Responses . | . . . . . . . . . . . . . . . . . . . . Cargo Convoy Interrupts . | . . . . . . . . . . . . . . . . . . . . Stealth | -11 -10 -10 -10 -9 -8 -8 -8 -7 -7 -7 -7 -6 -6 -6 -6 -5 -5 -4 -4 --------- Run | Yrd Mat Min Exi Min Mat Gar Sto Fac Gar Fac DSF Fac Gar Fac Gar Fac Gar Fac Upp Distress Signals 12 | . 1 . . . 7 . 1 . . . . . . . . . . 3 . Communications Jammed . | . . . . . . . . . . . . . . . . . . . . Distress Signals . | . . . . . . . . . . . . . . . . . . . . Times Spotted 308 | . 17 4 . . 40 43 13 10 20 . 15 19 18 6 30 7 30 31 5 Peak Tracking Total 11 | . 5 2 . . 6 6 3 3 8 . 5 5 8 2 11 3 4 9 4 Tactical Retreats 24 | . . . . . 6 8 . . 1 . 3 . 2 2 2 . . . . Traps | -11 -10 -10 -10 -9 -8 -8 -8 -7 -7 -7 -7 -6 -6 -6 -6 -5 -5 -4 -4 ------- Run | Yrd Mat Min Exi Min Mat Gar Sto Fac Gar Fac DSF Fac Gar Fac Gar Fac Gar Fac Upp Traps Triggered 35 | . 1 . . . 1 5 1 . 10 . 1 5 1 . 4 2 4 . . Indirectly . | . . . . . . . . . . . . . . . . . . . . Trap Hack Attempts . | . . . . . . . . . . . . . . . . . . . . Triggered . | . . . . . . . . . . . . . . . . . . . . Disarmed . | . . . . . . . . . . . . . . . . . . . . Reprogrammed . | . . . . . . . . . . . . . . . . . . . . Reused . | . . . . . . . . . . . . . . . . . . . . Traps Extracted . | . . . . . . . . . . . . . . . . . . . . Installed 3 | . . 3 . . . . . . . . . . . . . . . . . Triggered . | . . . . . . . . . . . . . . . . . . . . Most Traps Carried 1 | . . 1 . . . . . . . . . . . . . . . . . Machines | -11 -10 -10 -10 -9 -8 -8 -8 -7 -7 -7 -7 -6 -6 -6 -6 -5 -5 -4 -4 ---------- Run | Yrd Mat Min Exi Min Mat Gar Sto Fac Gar Fac DSF Fac Gar Fac Gar Fac Gar Fac Upp Machines Disabled 50 | . 2 . . . 3 8 . 1 8 . 1 6 2 . 7 2 6 4 . Max in Single Turn 4 | . 1 . . . 1 1 . 1 1 . 1 1 1 . 2 1 1 4 . Garrison Access 4 | . . . . . . . . 2 . . . 2 . . . . . . . Garrison Relay 17 | . . . . . . 8 . . 3 . . . . . 2 . 4 . . Machines Repaired . | . . . . . . . . . . . . . . . . . . . . Machines Dismantled . | . . . . . . . . . . . . . . . . . . . . Machines Sabotaged . | . . . . . . . . . . . . . . . . . . . . Overloaded Fab Kills . | . . . . . . . . . . . . . . . . . . . . Hacking | -11 -10 -10 -10 -9 -8 -8 -8 -7 -7 -7 -7 -6 -6 -6 -6 -5 -5 -4 -4 --------- Run | Yrd Mat Min Exi Min Mat Gar Sto Fac Gar Fac DSF Fac Gar Fac Gar Fac Gar Fac Upp Machines Accessed 75 | . 7 . 2 . 5 5 7 8 1 1 . 17 . 11 . 5 2 3 1 Terminals 54 | . 6 . . . 4 5 7 3 1 1 . 11 . 7 . 3 2 3 1 Fabricators 5 | . . . . . . . . 1 . . . 1 . 2 . 1 . . . Repair Stations 2 | . . . . . . . . . . . . 1 . 1 . . . . . Recycling Units 4 | . 1 . . . . . . 1 . . . 2 . . . . . . . Scanalyzers . | . . . . . . . . . . . . . . . . . . . . Garrison Access 8 | . . . . . 1 . . 3 . . . 2 . 1 . 1 . . . Total Hacks 169 | . 23 . 2 . 13 11 13 16 1 1 . 41 . 23 . 14 3 7 1 Successful 76 | . 7 . 2 . 6 3 5 8 1 1 . 20 . 11 . 7 2 2 1 Failed 93 | . 16 . . . 7 8 8 8 . . . 21 . 12 . 7 1 5 . Catastrophic 18 | . 5 . . . . 3 2 . . . . 5 . . . 2 . 1 . Database Lockouts . | . . . . . . . . . . . . . . . . . . . . Manual 25 | . 13 . 1 . . . 2 . . . . 8 . 1 . . . . . Terminals 127 | . 19 . . . 11 11 13 7 1 1 . 28 . 13 . 12 3 7 1 Fabricators 9 | . . . . . . . . 3 . . . 1 . 4 . 1 . . . Repair Stations 9 | . . . . . . . . . . . . 4 . 5 . . . . . Recycling Units 10 | . 4 . . . . . . 1 . . . 5 . . . . . . . Scanalyzers . | . . . . . . . . . . . . . . . . . . . . Garrison Access 12 | . . . . . 2 . . 5 . . . 3 . 1 . 1 . . . Terminal Hacks 51 | . 6 . 2 . 5 3 5 2 1 1 . 10 . 6 . 5 2 2 1 Record 7 | . . . 1 . . . . . . . . 2 . 2 . . . 1 1 Part Schematic 1 | . . . . . . . . . . . . . . 1 . . . . . Robot Analysis 1 | . . . . . 1 . . . . . . . . . . . . . . Prototype ID Bank 8 | . 1 . . . 1 . . . . . . 3 . 1 . 1 . 1 . Open Door 4 | . . . . . . . 3 . . . . . . . . . 1 . . Open DSF 3 | . . . . . . . . 1 . 1 . . . 1 . . . . . Level Access Points 1 | . . . . . . . 1 . . . . . . . . . . . . Branch Access Points 2 | . . . . . . . . . . . . 1 . . . 1 . . . Emergency Access Points 3 | . . . . . . 1 . . 1 . . . . . . . 1 . . Terminal Index 3 | . 1 . . . 1 . . . . . . 1 . . . . . . . Unreport Threat 2 | . . . . . . . 1 . . . . . . . . 1 . . . Locate Traps 3 | . 1 . . . . . . . . . . 1 . . . 1 . . . Dispatch Records 1 | . 1 . . . . . . . . . . . . . . . . . . Transport Status 1 | . . . . . 1 . . . . . . . . . . . . . . Hauler Manifests 4 | . . . . . 1 . . . . . . 2 . . . 1 . . . Registered Components 3 | . 1 . . . . . . 1 . . . . . 1 . . . . . Zone Layout 1 | . 1 . . . . . . . . . . . . . . . . . . Garrison Registry 1 | . . . . . . 1 . . . . . . . . . . . . . Patrol Navigation 1 | . . . . . . 1 . . . . . . . . . . . . . Proto ID Catalog 1 | . . . 1 . . . . . . . . . . . . . . . . Fabricator Hacks 4 | . . . . . . . . . . . . 1 . 2 . 1 . . . Network Status 3 | . . . . . . . . . . . . 1 . 1 . 1 . . . Build 1 | . . . . . . . . . . . . . . 1 . . . . . Repair Station Hacks 6 | . . . . . . . . . . . . 4 . 2 . . . . . Scan Component 4 | . . . . . . . . . . . . 2 . 2 . . . . . Repair 2 | . . . . . . . . . . . . 2 . . . . . . . Recycling Unit Hacks 3 | . . . . . . . . 1 . . . 2 . . . . . . . Retrieve Components 3 | . . . . . . . . 1 . . . 2 . . . . . . . Scanalyzer . | . . . . . . . . . . . . . . . . . . . . Garrison Access Hacks 11 | . . . . . 1 . . 5 . . . 3 . 1 . 1 . . . Unlock Access 5 | . . . . . 1 . . 1 . . . 1 . 1 . 1 . . . Seal Access 3 | . . . . . . . . 2 . . . 1 . . . . . . . Coupler Status 3 | . . . . . . . . 2 . . . 1 . . . . . . . Unauthorized Hacks 1 | . 1 . . . . . . . . . . . . . . . . . . Terminals . | . . . . . . . . . . . . . . . . . . . . Fabricators . | . . . . . . . . . . . . . . . . . . . . Repair Stations . | . . . . . . . . . . . . . . . . . . . . Recycling Units 1 | . 1 . . . . . . . . . . . . . . . . . . Recyclers 1 | . 1 . . . . . . . . . . . . . . . . . . Scanalyzers . | . . . . . . . . . . . . . . . . . . . . Garrison Access . | . . . . . . . . . . . . . . . . . . . . Data Cores Recovered 2 | . . . . . . . 1 . . . . 1 . . . . . . . Used 1 | . . . . . . . 1 . . . . . . . . . . . . Hacking Detections 56 | . 7 . . . 5 3 4 5 1 . . 14 . 8 . 4 2 3 . Full Trace Events 4 | . 1 . . . 1 2 . . . . . . . . . . . . . Feedback Events 1 | . . . . . . 1 . . . . . . . . . . . . . Corruption 1 | . . . . . . 1 . . . . . . . . . . . . . Feedback Blocked . | . . . . . . . . . . . . . . . . . . . . Robot Schematics Acquired . | . . . . . . . . . . . . . . . . . . . . Robots Built . | . . . . . . . . . . . . . . . . . . . . Authchips . | . . . . . . . . . . . . . . . . . . . . Time . | . . . . . . . . . . . . . . . . . . . . Total Robot Build Rating . | . . . . . . . . . . . . . . . . . . . . Part Schematics Acquired 1 | . . . . . . . . . . . . . . 1 . . . . . Parts Built 2 | . . . . . . . . . . . . . . 2 . . . . . Authchips . | . . . . . . . . . . . . . . . . . . . . Time 128 | . . . . . . . . . . . . . . 128 . . . . . Total Part Build Rating 16 | . . . . . . . . . . . . . . 16 . . . . . Parts Repaired 2 | . . . . . . . . . . . . 2 . . . . . . . Time 97 | . . . . . . . . . . . . 97 . . . . . . . Parts Recycled . | . . . . . . . . . . . . . . . . . . . . Recycled Matter . | . . . . . . . . . . . . . . . . . . . . Retrieved Matter . | . . . . . . . . . . . . . . . . . . . . Retrieved Components 9 | . . . . . . . . 6 . . . 3 . . . . . . . Parts Scanalyzed . | . . . . . . . . . . . . . . . . . . . . Part Schematics Acquired . | . . . . . . . . . . . . . . . . . . . . Parts Damaged . | . . . . . . . . . . . . . . . . . . . . Bothacking | -11 -10 -10 -10 -9 -8 -8 -8 -7 -7 -7 -7 -6 -6 -6 -6 -5 -5 -4 -4 ------------ Run | Yrd Mat Min Exi Min Mat Gar Sto Fac Gar Fac DSF Fac Gar Fac Gar Fac Gar Fac Upp Used RIF Installer 5 | . . . . . . 1 . . 1 . . . 1 . 1 . 1 . . Threat Obfuscator 1 | . . . . . . . . . . . . . . . 1 . . . . Robot Detection 1 | . . . . . . . . . 1 . . . . . . . . . . Watcher Feeds 1 | . . . . . . . . . . . . . 1 . . . . . . Patrol Navigation 1 | . . . . . . . . . . . . . . . . . 1 . . Robots Hacked 19 | . . . . . . . 1 . 1 . 1 . 2 1 5 1 7 . . Non-combat 2 | . . . . . . . . . . . . . . 1 . 1 . . . Combat 17 | . . . . . . . 1 . 1 . 1 . 2 . 5 . 7 . . Robot Hacks Applied 23 | . . . . . . . 1 . 2 . 1 . 2 1 5 3 8 . . parse_system 2 | . . . . . . . . . . . . . . . 1 . 1 . . no_distress 2 | . . . . . . . . . . . . . . . . 2 . . . drop_inventory 1 | . . . . . . . . . . . . . . . . 1 . . . spike_heat 1 | . . . . . . . . . 1 . . . . . . . . . . amplify_resonance 5 | . . . . . . . . . 1 . . . 1 . 2 . 1 . . overwrite_iff 9 | . . . . . . . . . . . 1 . 1 . 2 . 5 . . formatsys_high 3 | . . . . . . . 1 . . . . . . 1 . . 1 . . Relay Couplers Released 66 | . . . . . . 31 . . 15 . . 1 . . 7 . 12 . . Machine Destruction 66 | . . . . . . 31 . . 15 . . 1 . . 7 . 12 . . Attached 12 | . . . . . . . 1 . 1 . . . 1 . 3 . 5 1 . Fabnet Peak Effective % . | . . . . . . . . . . . . . . . . . . . . Robots Rewired 8 | . . . . . . . . . . . . . . . 1 . 7 . . Allies Hacked 3 | . . . . . . . . . . . . . . . 2 . . 1 . Hacks Repelled . | . . . . . . . . . . . . . . . . . . . . Allies | -11 -10 -10 -10 -9 -8 -8 -8 -7 -7 -7 -7 -6 -6 -6 -6 -5 -5 -4 -4 -------- Run | Yrd Mat Min Exi Min Mat Gar Sto Fac Gar Fac DSF Fac Gar Fac Gar Fac Gar Fac Upp Total Allies 26 | . . . . 3 . . 1 . . . 1 . 1 1 5 . 14 . . Largest Group 8 | . . . . 3 3 . 1 1 . . 1 . 1 1 3 . 8 4 . Highest-Rated Group 360 | . . . . 40 40 . 15 15 . . 15 . 24 26 118 . 360 195 . Highest-Rated Ally 116 | . . . . 16 16 . 15 15 . . 15 . 24 26 46 . 116 68 . Total Orders . | . . . . . . . . . . . . . . . . . . . . Ally Attacks 138 | . . . . . 26 . . 1 . . 2 . 1 . 5 . 88 15 . Total Damage 4618 | . . . . . 252 . . 24 . . 14 . 18 . 126 . 3716 468 . Kills 33 | . . . . . 4 . . . . . 1 . 1 . 1 . 23 3 . Allies Corrupted 3 | . . . . . . . . . . . . . . . 1 . 2 . . Allies Melted 1 | . . . . . . . . . . . . . . . . . 1 . . Intel | -11 -10 -10 -10 -9 -8 -8 -8 -7 -7 -7 -7 -6 -6 -6 -6 -5 -5 -4 -4 ------- Run | Yrd Mat Min Exi Min Mat Gar Sto Fac Gar Fac DSF Fac Gar Fac Gar Fac Gar Fac Upp Active Infowar (turns) 2626 | 46 725 397 635 226 . . . . . . . 597 . . . . . . . Terrain 622 | 25 . . . . . . . . . . . 597 . . . . . . . Seismic 2004 | 21 725 397 635 226 . . . . . . . . . . . . . . . Robot Analysis Total 1 | . . . . . 1 . . . . . . . . . . . . . . Derelict Logs Recovered 3 | . . . . 2 . . . . . . . . . . . . . . 1 Drone Launches . | . . . . . . . . . . . . . . . . . . . . Drone Recoveries . | . . . . . . . . . . . . . . . . . . . . Exploration | -11 -10 -10 -10 -9 -8 -8 -8 -7 -7 -7 -7 -6 -6 -6 -6 -5 -5 -4 -4 ------------- Run | Yrd Mat Min Exi Min Mat Gar Sto Fac Gar Fac DSF Fac Gar Fac Gar Fac Gar Fac Upp Turns Passed 14902 | 254 725 412 635 454 1584 1727 819 1193 1132 29 393 1686 239 604 489 696 1107 466 258 Spaces Moved 10824 | 112 373 215 396 239 736 952 364 993 772 29 180 1494 239 770 481 873 1125 301 180 Core 167 | 7 . . . . . . . . . . 1 . . . . . . 36 123 Treads 2791 | 105 373 215 396 239 736 670 . . . . . . . . . . . . 57 Legs 945 | . . . . . . . . . . . 50 895 . . . . . . . Wheels . | . . . . . . . . . . . . . . . . . . . . Hover 6910 | . . . . . . 282 364 993 772 29 118 599 239 770 481 873 1125 265 . Flight 11 | . . . . . . . . . . . 11 . . . . . . . . Fastest Speed 40 | 50 160 160 160 160 155 102 102 98 91 103 103 42 42 42 44 40 44 41 50 Average Speed 97 | 153 160 160 160 160 159 139 102 102 100 103 156 89 46 46 50 43 45 78 128 Slowest Speed 1000 | 160 160 160 160 160 160 155 102 170 103 103 700 120 94 106 111 44 105 1000 200 Overloaded Moves 15 | . . . . . . . . . 15 . . . . . . . . . . Propulsion Burnouts . | . . . . . . . . . . . . . . . . . . . . Robots Hopped . | . . . . . . . . . . . . . . . . . . . . Potential Cave-ins 44 | . . . . . . . . . . . . 4 . 10 . 16 7 7 . Cave-ins Triggered 1 | . . . . . . . . . . . . 1 . . . . . . . Exploration Rate (%) 49 | 7 83 40 76 59 59 93 57 32 82 2 93 40 27 22 56 35 81 14 40 Regions Visited 19 Branch Regions 5 Pre-discovered Areas 1 | . . . 1 . . . . . . . . . . . . . . . . Known Exits Taken 8 | . . . . 1 1 . 1 1 . 1 . 1 . 1 . 1 . . . Unknown Exits Taken 5 | 1 1 1 1 . . . . . . . . . . . . . . 1 . Scrap Searched 3 | . . 1 . 1 . . . . . . . . . . . . . . 1 Spaces Dug 148 | . . . . . 24 9 1 10 2 . . 27 . 20 . 35 7 13 . Terrain Destroyed 507 | . 12 . . . 36 27 7 25 27 . . 87 40 21 84 40 21 80 . Melee 31 | . . . . . . 9 1 10 . . . 11 . . . . . . . Projectile 142 | . . . . . 2 . 6 2 2 . . 26 1 21 1 40 8 33 . AOE 333 | . 12 . . . 34 18 . 13 25 . . 50 39 . 83 . 13 46 . Terrain Rammed . | . . . . . . . . . . . . . . . . . . . . Walls Destroyed . | . . . . . . . . . . . . . . . . . . . . Machines Disabled . | . . . . . . . . . . . . . . . . . . . . Actions | -11 -10 -10 -10 -9 -8 -8 -8 -7 -7 -7 -7 -6 -6 -6 -6 -5 -5 -4 -4 --------- Run | Yrd Mat Min Exi Min Mat Gar Sto Fac Gar Fac DSF Fac Gar Fac Gar Fac Gar Fac Upp Total 14089 | 147 436 259 398 311 1040 1236 737 1132 1018 28 243 1736 332 990 660 1139 1628 423 196 Wait 1681 | . 1 12 . 70 179 99 314 77 28 . . 88 48 170 41 178 343 28 5 Move 10805 | 111 372 214 395 238 735 951 363 992 771 28 179 1493 238 769 480 872 1124 300 180 Hop . | . . . . . . . . . . . . . . . . . . . . Pick Up 117 | 3 11 6 1 1 18 12 2 7 5 . 9 10 1 6 7 8 7 3 . Fast Attach 62 | 7 2 1 . . 3 . 4 4 . . 8 6 . 3 7 2 2 8 5 Attach 45 | . . . . . 6 5 4 1 3 . 6 2 1 1 8 1 2 5 . Detach 9 | . . . . . . . 1 . . . 1 1 1 1 4 . . . . Swap 144 | 2 4 . 1 1 14 17 6 15 8 . 4 23 8 4 10 6 15 6 . Drop 107 | . 7 6 1 1 13 11 . 10 4 . 3 16 1 10 1 10 4 9 . Fire 733 | 24 39 17 . . 72 75 40 14 84 . 33 57 21 26 50 51 68 62 . Melee 57 | . . . . . . 27 3 12 . . . 11 . . . . . . 4 Ram 6 | . . . . . . . . . . . . . . . . 2 . 2 2 Kick . | . . . . . . . . . . . . . . . . . . . . Crush . | . . . . . . . . . . . . . . . . . . . . Escape Stasis 297 | . . . . . . 39 . . 115 . . 29 13 . 52 9 40 . . Rewire 23 | . . . . . . . . . . . . . . . . . 23 . . Trap 3 | . . 3 . . . . . . . . . . . . . . . . . Miscellaneous . | . . . . . . . . . . . . . . . . . . . . Route ------- -11/Scrapyard -10/Materials (discovered 4 exits: [*Mat x2] / [*Min x2]) -10/Mines (discovered 2 exits: [*Mat] / *Exi) -10/Exiles -9/Mines (discovered 2 exits: *Mat x2) -8/Materials (discovered 3 exits: *Fac / *Sto / Gar) -8/Garrison (discovered 3 exits: *Sto x3) -8/Storage -7/Factory (discovered 2 exits: [*Low] / Gar) -7/Garrison (discovered 3 exits: *Fac x3) -7/Factory -7/DSF -6/Factory (discovered 5 exits: *Fac x2 / Low x2 / Gar) -6/Garrison -6/Factory (discovered 3 exits: *Fac / *Low / Gar) -6/Garrison (discovered 2 exits: *Fac x2) -5/Factory (discovered 6 exits: *Fac / Upp x2 / *Ext x2 / Gar) -5/Garrison (discovered 2 exits: *Fac x2) -4/Factory -4/Upper Caves History --------- Turn | Location | Event 3 | -11/Scrapyard | Discovered new exit (range 15) 255 | -11/Scrapyard | Entered Materials 313 | -10/Materials | Build established: Mutant 411 | -10/Materials | Discovered new exit (range 12) 484 | -10/Materials | Discovered new exit (range 3) 778 | -10/Materials | Discovered new exit (range 16) 928 | -10/Materials | Discovered new exit (range 15) 980 | -10/Materials | Entered Mines 981 | -10/Mines | Assembled infested the area 1185 | -10/Mines | Found a hidden stash of uninstalled traps 1213 | -10/Mines | Discovered new exit (range 9) 1370 | -10/Mines | Received a Rocket Launcher from a helpful Derelict 1382 | -10/Mines | Deemed a non-threat by the Exiles lab entrance 1384 | -10/Mines | Discovered new exit (range 5) 1392 | -10/Mines | Entered Exiles 1431 | -10/Exiles | Met 8R-AWN 1458 | -10/Exiles | Met EX-HEX 1524 | -10/Exiles | Met EX-DEC 1561 | -10/Exiles | Visited The Gauntlet 1634 | -10/Exiles | Learned location of Zion (-6) 1773 | -10/Exiles | Met EX-BIN 1796 | -10/Exiles | Aligned with FarCom system 1797 | -10/Exiles | Given EX-Vault access code 1834 | -10/Exiles | Opened EX-Vault 1845 | -10/Exiles | Found Longsword +1 1875 | -10/Exiles | Warned to stay clear of 0b10 Research branches 2006 | -10/Exiles | Discovered new exit (range 14) 2027 | -10/Exiles | Left Exiles lab with Longsword +1 2027 | -10/Exiles | Entered Mines 2177 | -9/Mines | Assisted by bots powering up and referring to "LRC-V3" 2352 | -9/Mines | Learned Materials emergency access door positions 2367 | -9/Mines | Identified exit to Materials 2419 | -9/Mines | Discovered exit to Materials (range 15) 2481 | -9/Mines | Entered Materials 2481 | -8/Materials | Accompanied by 3 allies 2481 | -8/Materials | Evolved 4 slots: Propulsion x1, Utility x2, Weapon x1 2769 | -8/Materials | Build established: Skirmisher 3766 | -8/Materials | Discovered new exit (range 2) 3891 | -8/Materials | Discovered new exit (range 10) 4002 | -8/Materials | Garrison activated, responded to threat 4063 | -8/Materials | Identified exit to Garrison 4065 | -8/Materials | Entered Garrison 4193 | -8/Garrison | Triggered checkpoint 4242 | -8/Garrison | Garrison Relay disabled 4443 | -8/Garrison | Triggered checkpoint 4684 | -8/Garrison | Triggered checkpoint 4906 | -8/Garrison | Discovered new exit (range 7) 4945 | -8/Garrison | Triggered checkpoint 5049 | -8/Garrison | Garrison Relay disabled 5137 | -8/Garrison | Triggered checkpoint 5151 | -8/Garrison | Triggered checkpoint 5160 | -8/Garrison | Triggered checkpoint 5191 | -8/Garrison | Destroyed 10 combat bots 5280 | -8/Garrison | Discovered new exit (range 8) 5295 | -8/Garrison | Triggered checkpoint 5336 | -8/Garrison | Garrison Relay disabled 5395 | -8/Garrison | Garrison Relay disabled 5404 | -8/Garrison | Garrison Relay disabled 5420 | -8/Garrison | Garrison Relay disabled 5543 | -8/Garrison | Discovered new exit (range 9) 5599 | -8/Garrison | Triggered checkpoint 5621 | -8/Garrison | Garrison Relay disabled 5632 | -8/Garrison | Discovered new exit (range 64) 5632 | -8/Garrison | Discovered new exit (range 25) 5632 | -8/Garrison | Discovered new exit (range 58) 5721 | -8/Garrison | Installed Relay Interface Framework 5792 | -8/Garrison | Entered Storage 6321 | -8/Storage | Build established: Bothacker-Skirmisher 6411 | -8/Storage | Lost 4 parts (1p1u2w) 6595 | -8/Storage | Identified exit to Factory 6611 | -8/Storage | Entered Factory 6611 | -7/Factory | Accompanied by 1 ally 6611 | -7/Factory | Evolved 2 slots: Propulsion x1, Utility x1 7132 | -7/Factory | Discovered new exit (range 3) 7803 | -7/Factory | Identified exit to Garrison 7804 | -7/Factory | Entered Garrison 7823 | -7/Garrison | Expanded RIF knowledge: Robot Detection 7857 | -7/Garrison | Triggered checkpoint 7888 | -7/Garrison | Destroyed 8 combat bots 7932 | -7/Garrison | Discovered new exit (range 10) 7980 | -7/Garrison | Triggered checkpoint 8030 | -7/Garrison | Garrison Relay disabled 8170 | -7/Garrison | Triggered checkpoint 8188 | -7/Garrison | Triggered checkpoint 8249 | -7/Garrison | Discovered new exit (range 10) 8296 | -7/Garrison | Triggered checkpoint 8355 | -7/Garrison | Garrison Relay disabled 8610 | -7/Garrison | Discovered new exit (range 13) 8646 | -7/Garrison | Garrison Relay disabled 8901 | -7/Garrison | Lost 4 parts (2n2u) 8936 | -7/Garrison | Entered Factory 8965 | -7/Factory | Identified exit to DSF 8965 | -7/Factory | Entered DSF 8984 | -7/DSF | Additional patrols routed to DSF 9149 | -7/DSF | Discovered new exit (range 16) 9222 | -7/DSF | Lost 3 parts (1n2u) 9230 | -7/DSF | Sterilization system engaged 9250 | -7/DSF | Ambient heat levels rising (+10) 9265 | -7/DSF | Ambient heat levels rising (+10) 9280 | -7/DSF | Ambient heat levels rising (+10) 9295 | -7/DSF | Ambient heat levels rising (+10) 9310 | -7/DSF | Ambient heat levels rising (+10) 9325 | -7/DSF | Ambient heat levels rising (+10) 9340 | -7/DSF | Ambient heat levels rising (+10) 9355 | -7/DSF | Ambient heat levels rising (+10) 9358 | -7/DSF | Entered Factory 9358 | -6/Factory | Evolved 2 slots: Propulsion x2 9544 | -6/Factory | Repaired Remote Datajack 9598 | -6/Factory | Repaired Broken Imp. Heat Sink? 9632 | -6/Factory | Identified exit to Lower Caves 10032 | -6/Factory | Crushed by falling debris 10515 | -6/Factory | Discovered new exit (range 9) 10575 | -6/Factory | Discovered new exit (range 13) 11043 | -6/Factory | Identified exit to Garrison 11044 | -6/Factory | Entered Garrison 11051 | -6/Garrison | Expanded RIF knowledge: Watcher Feeds 11062 | -6/Garrison | Triggered checkpoint 11062 | -6/Garrison | Triggered checkpoint 11076 | -6/Garrison | Triggered checkpoint 11277 | -6/Garrison | Discovered new exit (range 15) 11283 | -6/Garrison | Entered Factory 11298 | -6/Factory | Discovered new exit (range 6) 11339 | -6/Factory | Discovered exit to Lower Caves (range 19) 11524 | -6/Factory | Fabricated Linear Accelerator (x2) 11883 | -6/Factory | Identified exit to Garrison 11887 | -6/Factory | Entered Garrison 11887 | -6/Garrison | Accompanied by 1 ally 11914 | -6/Garrison | Expanded RIF knowledge: Threat Obfuscation 11943 | -6/Garrison | Rescued a captive Derelict 11945 | -6/Garrison | Rescued a captive Derelict 11964 | -6/Garrison | Spotted B-75 Beast 12030 | -6/Garrison | Destroyed B-75 Beast 12068 | -6/Garrison | Core integrity fell below 50% 12085 | -6/Garrison | Triggered checkpoint 12097 | -6/Garrison | Triggered checkpoint 12106 | -6/Garrison | Lost 9 parts (1p4n1u3w) 12125 | -6/Garrison | Triggered checkpoint 12165 | -6/Garrison | Destroyed 8 combat bots 12213 | -6/Garrison | Discovered new exit (range 13) 12261 | -6/Garrison | Triggered checkpoint 12264 | -6/Garrison | Garrison Relay disabled 12266 | -6/Garrison | Garrison Relay disabled 12358 | -6/Garrison | Discovered new exit (range 10) 12376 | -6/Garrison | Entered Factory 12376 | -5/Factory | Evolved 2 slots: Propulsion x1, Utility x1 12548 | -5/Factory | Identified exit to Upper Caves 12548 | -5/Factory | Identified exit to Extension 12792 | -5/Factory | Discovered new exit (range 16) 13072 | -5/Factory | Identified exit to Garrison 13072 | -5/Factory | Entered Garrison 13112 | -5/Garrison | Rewired B-86 Titan 13217 | -5/Garrison | Triggered checkpoint 13264 | -5/Garrison | Garrison Relay disabled 13292 | -5/Garrison | Spotted B-75 Beast 13297 | -5/Garrison | Triggered checkpoint 13454 | -5/Garrison | Triggered checkpoint 13486 | -5/Garrison | Garrison Relay disabled 13566 | -5/Garrison | Triggered checkpoint 13576 | -5/Garrison | Discovered new exit (range 10) 13804 | -5/Garrison | Triggered checkpoint 13813 | -5/Garrison | Lost 3 parts (1n1u1w) 13827 | -5/Garrison | Found Quantum Capacitor 13836 | -5/Garrison | Discovered new exit (range 14) 13868 | -5/Garrison | Triggered checkpoint 13892 | -5/Garrison | Garrison Relay disabled 13902 | -5/Garrison | Triggered checkpoint 13909 | -5/Garrison | Rescued a captive Derelict 14006 | -5/Garrison | Triggered checkpoint 14028 | -5/Garrison | Lost 3 allies 14028 | -5/Garrison | Expanded RIF knowledge: Patrol Navigation 14053 | -5/Garrison | Garrison Relay disabled 14179 | -5/Garrison | Entered Factory 14179 | -4/Factory | Accompanied by 4 allies 14179 | -4/Factory | Evolved 2 slots: Power x1, Weapon x1 14396 | -4/Factory | Discovered new exit (range 29) 14467 | -4/Factory | Lost 3 allies 14617 | -4/Factory | Core integrity fell below 50% 14624 | -4/Factory | Released all parts (3) 14645 | -4/Factory | Entered Upper Caves 14653 | -4/Upper Caves | Lost 16 parts (2p5n3u6w) 14780 | -4/Upper Caves | Learned Research non-interactive machine intel 14891 | -4/Upper Caves | Core integrity fell below 20% 14903 | -4/Upper Caves | Destroyed by S-27 Virus with Autogun Last Messages --------------- 14800_ System corrupted: Matter fused (-7). 14800_ Acquired 7 matter. 14825_ System corrupted: Substantial component data lost. 14841_ Med. Treads destroyed. 14846_ P-70 Sage destroyed. 14850_ Mic. Fission Core fries itself beyond repair. 14853_ Acquired Imp. Remote Datajack. 14856_ Acquired Imp. Heat Sink. 14857_ R&O0&O 14893_ Com. Battery destroyed. 14893_ System corrupted by crushing effect (+2). 14895_ System corrupted: Energy discharge (-34). 14901_ Imp. Remote Datajack destroyed. 14902_ Acquired Corrupted Med. Treads. 14902_ Integrated Corrupted Med. Treads (+3). Map ----- +----------------------------------------------------+ | ?????????????????????????????????????????????????? | | ?????????????????????????????????????????????????? | | ?????????????????????????????????????????????????? | | ?????????????????????????????????????????????????? | | ?????????????????????????????????????????????????? | | ?????????????????????????????????????????????????? | | ?????????????????????????????????????????????????? | | ?????????????????????????????????????????????????? | | ?????????????????????????????????????????????????? | | ?????????????????????????????????????????????????? | | ?????????????????????????????????????????????????? | | ?????????????????????????????????????????????????? | | ?????????????????????????????????????????????????? | | ?????????????????????????????????????????????????? | | ???????????????????????????? #??????????????#????? | | ??????????????????????????? #??????????????# ???? | | ?????????????? #?????????? #??????????????? ?? | | ????????????? #????????? #????????????????? # | | ????????????? #???????? #??????????????????? | | ???????????? ??????# #???????????????????? | | ???????????? ??????# #???????????????????? | | ?????????????? ?????# #???????????????????# | | ????????????????# ??### #???????????????????# | | ????????????????# ### #????##???????#####?# | | ???????????????## % #???# ##???#??# ### | | ??????????????## @ #???? ##? #### | | ??????????????# ##??? ## ## | | ?????????????## #### #?# | | ?????????????# #??# | | ?????????? ## #??## | | ??????????? #???# ## #???### | | ??????????????????# ?## ### ???????## | | ?????????????????# ???## ###??????????## | | ?????????????????## ????## s##?????????#### | | ??????????????????# ????# sss#####??##### | | ?????????????????# ## ## ##?# | | ???????????????? #### #?# | | ???????????????? ## #??## #?## | | ????????????????????# ### ???## ##?# | | ????????????????????# ??# ????# ### % | | ????????????????????# ???# ????## | | ????????????????????#???? ?????## | | ????????????????????????? ?????## | | ???????????????????????? ???????# ### | | ???????????????????????? ?????# #?# | | ??????????????????????? ????# ### #?# | | ?????????????????????????? ?????# ##?## ## | | ????????????????????????????????# #???# ## | | ????????????????????????????????# #???# ### | | ????????????????????????????????## ???? ##?? | +----------------------------------------------------+ Best States ------------- Heat Dissipation 81 Energy Generation 37 Energy Capacity 590 Matter Stores 300 Matter Capacity 300 Sight Range 16 Terrain Scan Range 20 Terrain Scan Density 10 Additional Mass Support 9 Base Temperature (-) 150 Armor Coverage 225 Resistance: KI 30 Evasion (%) 57 Targeting Accuracy 8 Recoil Reduction 3 Relay Coupler Types 2 Relay Coupler Value 63 Item Schematics ----------------- Adv. Reaction Control System | -6/Factory | Hacked Robot Schematics ------------------ None Fabricated ------------ Linear Accelerator | x2 | -6/Factory | Preloaded Repaired ---------- Remote Datajack | 1% | -6/Factory Imp. Heat Sink | 95% | -6/Factory | Broken Alien Tech Used ----------------- None Achievements -------------- Infiltrator More Dakka Please Origins Challenges ------------ None Game ------ Seed SuperchargedBarrageLattice Manual? 0 Play Time 03:10:28 Cumulative 52.4 hours Start 2025.05.24 @ 14:32:48 End 2025.05.25 @ 12:45:30 Sessions 3 Manual Loads 0 Difficulty Rogue Special Mode None Game No. 57 Rogue 57 Adventurer 0 Explorer 0 Win Type - Total 0 Types 0/0/0/0/0/0/0/0/0/0 Lore% 53 Gallery% 38 Achievement% 37 Wizard Run 0 Options --------- Layout 1 ASCII 0 Keyboard 0 Movement Mouse Keybinds 0 Fullscreen 1 Font 48/Smallcaps Map View 50x35 Zoom Use 0% Tactical HUD 1 Map Filters NONE Filters NONE Steam 1 RUN: 84100a3b-ee55-4e45-a8a2-01f5968f313e